fUSD/lending_fUSD_20240107
["ID","MTS","AMOUNT","RATE_DAILY","PERIOD"]
[310692236,1704642648649,-1983.825,0.00031658,2]
[310692237,1704642648660,-446.44600002,0.00031658,2]
[310692238,1704642654020,150.0,0.00022,2]
[310692239,1704642654042,150.0,0.00022,2]
[310692240,1704642654065,150.0,0.00022,2]
[310692241,1704642654086,150.0,0.00022,2]
[310692242,1704642654112,150.0,0.00022,2]
[310692243,1704642654135,150.0,0.00022,2]
[310692244,1704642654163,150.0,0.00022,2]
[310692245,1704642654190,150.0,0.00022,2]
[310692246,1704642654214,150.0,0.00022,2]
[310692247,1704642654237,150.0,0.00022,2]
[310692248,1704642654259,150.0,0.00022,2]
[310692249,1704642654281,1536.48579295,0.00022,2]
[310692252,1704642666723,150.0,0.00021997,2]
[310692253,1704642666745,24.10201418,0.00021997,2]
[310692256,1704642679465,125.89798582,0.00021,2]
[310692257,1704642679487,43.03993789,0.00021,2]
[310692258,1704642689309,218.6187855,0.00022,2]
[310692259,1704642689334,81.3812145,0.00022,2]
[310692260,1704642693206,68.6187855,0.0001,2]
[310692261,1704642693228,623.40401906,0.0001,2]
[310692262,1704642694045,617.50898563,0.00022,2]
[310692263,1704642696012,712.82790608,0.0002,2]
[310692264,1704642863185,335.98944015,0.000301,120]
[310692265,1704642864667,483.90543338,0.00022,2]
[310692266,1704642866333,198.5,0.0002182,2]
[310692267,1704642880383,201.98,0.00016712,2]
[310692268,1704642912095,153.72270129,0.00022,2]
[310692269,1704643146557,500.0,0.00022,2]
[310692270,1704643149636,256.13,0.00022,2]
[310692271,1704643232219,155.0,0.00020423,2]
[310692272,1704643233899,155.26769643,0.00022,2]
[310692273,1704643234616,155.0,0.000198,2]
[310692274,1704643235930,511.02,0.00019899,2]
[310692275,1704643236305,155.0,0.00022,2]
[310692276,1704643237034,155.0,0.00022,2]
[310692277,1704643237728,247.05,0.00021817,2]
[310692278,1704643238174,156.41060711,0.00022,2]
[310692279,1704643238208,155.0,0.00022,2]
[310692280,1704643239308,304.34,0.0002178,2]
[310692281,1704643239902,1170.69,0.0002178,2]
[310692282,1704643240165,155.0,0.00022,2]
[310692283,1704643240843,158.77665911,0.00022,2]
[310692284,1704643241334,155.45092811,0.0002,2]
[310692285,1704643241660,155.0,0.00022,2]
[310692286,1704643241691,155.0,0.00022,2]
[310692287,1704643243703,155.0,0.00022,2]
[310692288,1704643245144,155.0,0.00019979,2]
[310692289,1704643247934,155.0,0.00022,2]
[310692290,1704643249349,155.05883397,0.00022,2]
[310692291,1704643250205,157.51675556,0.00020423,2]
[310692292,1704643250243,155.71926951,0.00022,2]
[310692293,1704643252245,197.18961884,0.00022,2]
[310692294,1704643255413,155.0,0.00019979,2]
[310692295,1704643256196,155.0,0.00022,2]
[310692296,1704643256604,155.0,0.000198,2]
[310692297,1704643258129,155.0,0.00021977,2]
[310692298,1704643258293,155.0,0.00022,2]
[310692299,1704643258727,155.0,0.00022,2]
[310692300,1704643259675,155.0,0.00022,2]
[310692301,1704643260823,208.62686869,0.00022,2]
[310692302,1704643261636,155.0,0.00022,2]
[310692303,1704643262140,155.0,0.00022,2]
[310692304,1704643262250,156.41060711,0.00022,2]
[310692305,1704643263323,155.97742372,0.0002,2]
[310692306,1704643263679,155.0,0.00022,2]
[310692307,1704643265983,150.0,0.00022,2]
[310692308,1704643266029,155.0,0.00022,2]
[310692309,1704643268759,155.0,0.00022,2]
[310692310,1704643269929,155.55789535,0.00022,2]
[310692311,1704643269958,2505.29,0.00021707,2]
[310692312,1704643271086,323.95,0.00021707,2]
[310692313,1704643271411,155.0,0.00019979,2]
[310692314,1704643274190,305.0,0.00022,2]
[310692315,1704643274296,155.0,0.00022,2]
[310692316,1704643274738,155.0,0.00022,2]
[310692317,1704643277636,155.0,0.00022,2]
[310692318,1704643278318,211.80421157,0.00021977,2]
[310692319,1704643280150,156.41060711,0.00022,2]
[310692320,1704643284147,155.0,0.00022,2]
[310692321,1704643285875,155.0,0.00022,2]
[310692322,1704643288908,155.0,0.00022,2]
[310692323,1704643289404,155.34481245,0.00019979,2]
[310692324,1704643290298,155.0,0.00022,2]
[310692325,1704643292193,155.0,0.00022,2]
[310692326,1704643294890,154.01,0.00021924,2]
[310692327,1704643296120,155.0,0.00021977,2]
[310692328,1704643298177,156.41060711,0.00022,2]
[310692329,1704643299660,155.0,0.00022,2]
[310692330,1704643301876,157.05145425,0.00022,2]
[310692331,1704643304313,155.0,0.00022,2]
[310692332,1704643308733,155.0,0.00022,2]
[310692333,1704643310302,155.0,0.00022,2]
[310692334,1704643311936,3908.09,0.00021707,2]
[310692335,1704643312191,155.87279022,0.00022,2]
[310692336,1704643316143,155.0,0.00021977,2]
[310692337,1704643318175,156.41060711,0.00022,2]
[310692338,1704643322155,157.06753871,0.00022,2]
[310692339,1704643324313,155.0,0.00022,2]
[310692340,1704643334107,150.0,0.00022,2]
[310692341,1704643334137,155.0,0.00021977,2]
[310692342,1704643336177,310.0,0.00022,2]
[310692343,1704643339706,271.22,0.00021705,2]
[310692344,1704643342161,158.79,0.00021705,2]
[310692345,1704643346299,155.0,0.00022,2]
[310692346,1704643352122,155.0,0.00021977,2]
[310692347,1704643355005,250.0,0.00021705,2]
[310692348,1704643366326,155.0,0.00022,2]
[310692349,1704643374134,155.0,0.00021977,2]
[310692350,1704643382315,155.0,0.00022,2]
[310692351,1704643384704,475.02,0.00021734,2]
[310692352,1704643392146,253.86236213,0.00021977,2]
[310692353,1704643401947,152.70627102,0.00022,2]
[310692354,1704643404902,1087.54,0.00021714,2]
[310692355,1704643420275,2705.0,0.00021714,2]
[310692356,1704643422066,23900.0,0.00021714,2]
[310692357,1704643474090,1000.0,0.00021705,2]
[310692358,1704643474280,921.42,0.00021705,2]
[310692359,1704643481877,500.0,0.00021705,2]
[310692360,1704643509984,175.9,0.00022,2]
[310692361,1704643530710,8441.7,0.00021918,2]
[310692362,1704643579061,200.0,0.00021698,2]
[310692363,1704643586348,192.02,0.00021698,2]
[310692364,1704643587052,2000.0,0.00021698,2]
[310692365,1704643597231,29980.6,0.00021698,2]
[310692366,1704643602494,157.14,0.00021861,2]
[310692367,1704643604382,3057.77,0.00021698,2]
[310692368,1704643611880,200.0,0.00021682,2]
[310692369,1704643615582,3185.33,0.00021682,2]
[310692370,1704643620122,450.9,0.00021681,2]
[310692371,1704643627312,150.0,0.00021681,2]
[310692372,1704643630121,200.0,0.000227,8]
[310692373,1704643632259,500.0,0.000228,8]
[310692374,1704643634366,800.0,0.000229,8]
[310692375,1704643663349,170.98,0.00021688,2]
[310692376,1704643670784,250.0,0.00022,2]
[310692377,1704643675970,1000.25,0.00021688,2]
[310692378,1704643695771,1150.96,0.00021689,2]
[310692379,1704643699902,155.73,0.00021905,2]
[310692380,1704643705212,194.44,0.00021705,2]
[310692381,1704643732111,520.42,0.00019796,2]
[310692384,1704643763755,256.13,0.00022,2]
[310692389,1704643802626,150.0,0.00019796,2]
[310692390,1704643803066,150.0,0.00019796,2]
[310692391,1704643803497,150.0,0.00019796,2]
[310692392,1704643803701,150.0,0.00019796,2]
[310692393,1704643803899,150.0,0.00019796,2]
[310692394,1704643804105,150.0,0.00019796,2]
[310692395,1704643804296,150.0,0.00019796,2]
[310692396,1704643804505,150.0,0.00019796,2]
[310692397,1704643804692,150.0,0.00019796,2]
[310692398,1704643804921,300.0,0.00019796,2]
[310692404,1704643807123,250.0,0.00021709,2]
[310692439,1704643835151,-155.0,0.00022059,2]
[310692441,1704643835163,-196.82647562,0.0002206,2]
[310692445,1704643835214,-323.59352438,0.0002206,2]
[310692447,1704643835224,-94.02538957,0.00022078,2]
[310692449,1704643835237,-684.6567247,0.00022078,2]
[310692451,1704643835246,-157.14,0.00022089,2]
[310692452,1704643835256,-158.06061117,0.00022101,2]
[310692453,1704643835266,-256.13,0.00022137,2]
[310692454,1704643835275,-234.570411,0.00022199,2]
[310692455,1704643835285,-155.0,0.00022199,2]
[310692456,1704643835296,-155.0,0.00022199,2]
[310692457,1704643835306,-155.08,0.00022237,2]
[310692458,1704643835315,-150.0,0.0002226,2]
[310692459,1704643835325,-158.06061113,0.00022261,2]
[310692460,1704643835334,-1578.07,0.00022261,2]
[310692461,1704643835343,-171.53897098,0.00022261,2]
[310692462,1704643835355,-516.49102902,0.00022261,2]
[310692463,1704643835365,-250.0,0.00022274,2]
[310692464,1704643835374,-277.9728941,0.00022274,2]
[310692465,1704643835383,-157.14,0.00022317,2]
[310692466,1704643835392,-155.08,0.00022376,2]
[310692467,1704643835402,-1.21077152,0.00022421,2]
[310692468,1704643835414,-156.84983961,0.00022421,2]
[310692469,1704643835423,-1025.55340542,0.00022442,2]
[310692470,1704643835432,-155.08,0.00022515,2]
[310692471,1704643835441,-122.95756586,0.00022545,2]
[310692472,1704643835454,-34.18243414,0.00022545,2]
[310692473,1704643835463,-175.9,0.00022548,2]
[310692474,1704643835473,-350.0,0.00022548,2]
[310692475,1704643835482,-158.06061113,0.0002258,2]
[310692476,1704643835491,-155.08,0.00022654,2]
[310692477,1704643835500,-10.20027473,0.00022667,2]
[310692478,1704643835512,-1134.72,0.00022667,2]
[310692479,1704643835525,-6.03972527,0.00022667,2]
[310692480,1704643835535,-155.0,0.00022701,2]
[310692481,1704643835547,-131.12627474,0.0002274,2]
[310692483,1704643835562,-26.93433639,0.0002274,2]
[310692485,1704643835571,-157.14,0.00022772,2]
[310692487,1704643835580,-155.08,0.00022793,2]
[310692488,1704643835589,-447.2314658,0.00022899,2]
[310692489,1704643835602,-980.60879457,0.00022899,2]
[310692490,1704643835618,-997.50509957,0.00022899,2]
[310692491,1704643835628,-1777.4678,0.000229,2]
[310692492,1704643835638,-507.558,0.000229,2]
[310692493,1704643835647,-950.47450367,0.000229,2]
[310692494,1704643835660,-595.35049633,0.000229,2]
[310692495,1704643835669,-7.66064135,0.000229,2]
[310692513,1704643837720,-150.39996978,0.000229,2]
[310692514,1704643837730,-220.81326949,0.000229,2]
[310692515,1704643837739,-265.06622812,0.000229,2]
[310692516,1704643837749,-648.9428905,0.000229,2]
[310692517,1704643837761,-222.67129414,0.000229,2]
[310692518,1704643837770,-439.49138638,0.000229,2]
[310692519,1704643837780,-158.4222006,0.000229,2]
[310692520,1704643837790,-130.6764416,0.000229,2]
[310692521,1704643837804,-332.93164575,0.000229,2]
[310692522,1704643837814,-247.05,0.00022907,2]
[310692523,1704643837824,-155.08,0.00022932,2]
[310692524,1704643837833,-1694.45563293,0.00022998,2]
[310692525,1704643837843,-181.68272132,0.00022998,2]
[310692526,1704643837855,-107.37593726,0.00022998,2]
[310692527,1704643837866,-10486.0438003,0.00022999,2]
[310692528,1704643837876,-50950.10723015,0.00023,2]
[310692529,1704643837888,-271.32227524,0.00023,2]
[310692530,1704643838057,-441.21,0.00023,2]
[310692531,1704643838069,-300.0,0.00023,2]
[310692532,1704643838127,-190563.15278448,0.00023,2]
[310692533,1704643838139,-100636.48778697,0.00023,2]
[310692534,1704643838165,-1687.95548856,0.00023,2]
[310692535,1704643838176,-1025.81794871,0.00023,2]
[310692537,1704643838224,-4900.50788979,0.00023,2]
[310692617,1704643840997,-341244.26352428,0.00023,2]
[310692618,1704643841010,-72949.06390563,0.00023,2]
[310692619,1704643841053,-6014.69502862,0.00023,2]
[310692620,1704643841111,-2256.7077913,0.00023,2]
[310692621,1704643841122,-4019.09127962,0.00023,2]
[310692622,1704643841133,-825.28,0.00023,2]
[310692623,1704643841145,-756.131,0.00023,2]
[310692624,1704643841156,-315.6,0.00023,2]
[310692625,1704643841167,-492.6875681,0.00023,2]
[310692626,1704643841178,-316.57383759,0.00023,2]
[310692627,1704643841189,-8156.39830358,0.00023,2]
[310692730,1704643842682,-459.79552025,0.00023,2]
[310692731,1704643842693,-2642.87264914,0.00023,2]
[310692732,1704643842789,-5271.86208178,0.00023,2]
[310692733,1704643842802,-348.5782294,0.00023,2]
[310692734,1704643842816,-39117.88270898,0.00023,2]
[310692735,1704643842825,-113749.06242601,0.00023,2]
[310692736,1704643842842,-296.09,0.00023,2]
[310692737,1704643842962,-504.23839965,0.00023,2]
[310692744,1704643845690,-11110.99999995,0.00023,2]
[310692745,1704643845744,-745.08699983,0.00023,2]
[310692746,1704643845757,-1580.34648275,0.00023,2]
[310692747,1704643847020,-76075.84238228,0.00023,2]
[310692748,1704643847040,-3348.49503481,0.00023,2]
[310692749,1704643847054,-325.42455408,0.00023,2]
[310692750,1704643847069,-1389.72464633,0.00023,2]
[310692751,1704643847087,-730.24297491,0.00023,2]
[310692752,1704643847117,-679.82969783,0.00023,2]
[310692753,1704643847136,-206339.683179,0.00023,2]
[310692754,1704643888366,-1079.20607677,0.0002254,2]
[310692755,1704643888394,-155.0,0.00022701,2]
[310692756,1704643888417,-252.88919684,0.000229,2]
[310692757,1704643888440,-157.15051088,0.00022998,2]
[310692758,1704643888463,-2998.29322246,0.00022998,2]
[310692759,1704643888486,-155.0,0.00022998,2]
[310692760,1704643888508,-195.70065275,0.00022999,2]
[310692761,1704643888531,-155.0,0.00022999,2]
[310692762,1704643888553,-486.64043304,0.00022999,2]
[310692763,1704643888575,-3787.86573081,0.00022999,2]
[310692764,1704643888599,-360545.56270694,0.00023,2]
[310692765,1704643888621,-932.02592622,0.00023,2]
[310692766,1704643888643,-753082.931943,0.00023,2]
[310692767,1704643888665,-550.0,0.00023,3]
[310692768,1704643888686,-499.99,0.00023,2]
[310692769,1704643888708,-82.94,0.00023,2]
[310692774,1704644217654,547.01,0.00021203,2]
[310692783,1704644316176,176.77,0.00023066,10]
[310692784,1704644469913,6390.64,0.00028,30]
[310692785,1704644520388,1358.46074525,0.000191,2]
[310692786,1704644520757,1358.46074525,0.0001929,2]
[310692787,1704644521250,1358.46074525,0.00019684,2]
[310692788,1704644521814,1358.46074525,0.00019896,2]
[310692789,1704644522213,1358.46074525,0.00020197,2]
[310692790,1704644526096,1358.46074525,0.00020542,2]
[310692791,1704644526410,1358.46074525,0.000208,2]
[310692792,1704644526900,1358.46074525,0.00020936,2]
[310692793,1704644527221,1358.46074525,0.00021247,2]
[310692794,1704644527690,1358.46074525,0.00021586,2]
[310692795,1704644528016,1358.46074525,0.00021885,2]
[310692796,1704644528375,1358.46074525,0.00022004,2]
[310692797,1704644601155,1000.0,0.00021944,2]
[310692798,1704644636338,170.98,0.00021941,2]
[310692799,1704644653436,1358.46074525,0.0002143,2]
[310692800,1704644653721,1358.46074525,0.00021904,2]
[310692801,1704644666745,-219.91815105,0.00022011,2]
[310692802,1704644666771,-155.0,0.00022012,2]
[310692803,1704644666796,-200.0,0.00022014,2]
[310692804,1704644666822,-2998.29322246,0.00022105,2]
[310692805,1704644666847,-2000.0,0.00022106,2]
[310692806,1704644666871,-1358.46074525,0.00022147,2]
[310692807,1704644666896,-150.0,0.00022154,2]
[310692808,1704644666922,-155.42,0.00022179,2]
[310692809,1704644666946,-200.0,0.00022192,2]
[310692810,1704644666971,-150.0,0.00022206,2]
[310692811,1704644666996,-22412.90788124,0.00022208,2]
[310692812,1704644707147,-1487.09211876,0.00022208,2]
[310692813,1704644707174,-936.31,0.0002222,2]
[310692814,1704644707201,-1358.46074525,0.00022274,2]
[310692815,1704644707227,-500.0,0.00022289,2]
[310692816,1704644707254,-157.54,0.00022293,2]
[310692817,1704644707279,-155.42,0.00022345,2]
[310692818,1704644707303,-467.21,0.00022355,2]
[310692819,1704644707329,-1261.43625605,0.00022437,2]
[310692820,1704644707355,-161.49130179,0.0002244,2]
[310692821,1704644707381,-155.42,0.0002251,2]
[310692822,1704644707406,-1060.49130451,0.0002254,2]
[310692823,1704644707430,-1064.77659957,0.0002254,2]
[310692824,1704644707455,-1127.84130597,0.0002254,2]
[310692825,1704644707480,-1140.00615385,0.0002254,2]
[310692826,1704644707505,-1261.43625605,0.00022541,2]
[310692827,1704644707529,-1131.50387885,0.00022605,2]
[310692828,1704644707554,-1358.46074525,0.00022606,2]
[310692829,1704644707581,-155.42,0.00022675,2]
[310692830,1704644707611,-216.70934726,0.00022701,2]
[310692831,1704644707636,-800.0,0.00022816,2]
[310692832,1704644707662,-155.42,0.0002284,2]
[310692833,1704644707688,-4842.97010679,0.00022847,2]
[310692834,1704644707713,-157.54,0.00022892,2]
[310692835,1704644707738,-1000.0,0.000229,2]
[310692836,1704644707763,-1493.16573031,0.00023,2]
[310692837,1704644707788,-2000.0,0.00023,2]
[310692838,1704644707813,-200.0,0.00023,2]
[310692839,1704644707838,-499.99,0.00023,2]
[310692840,1704644707862,-271.25,0.00023,2]
[310692841,1704644724705,230.56,0.00023,2]
[310692842,1704644732548,1401.81,0.00022374,2]
[310692843,1704644785526,167.66616628,0.0002,2]
[310692844,1704644833988,519.65,0.00020358,2]
[310692853,1704644965102,-396.15394687,0.00022228,2]
[310692857,1704645023275,161.49130176,0.00022128,2]
[310692861,1704645031801,-331.64206216,0.00022227,2]
[310692862,1704645031910,-321.27169607,0.00022227,2]
[310692863,1704645031923,-2345.37946423,0.00022227,2]
[310692864,1704645031932,-962.30679838,0.00022228,2]
[310692865,1704645031942,-160.59,0.00022239,2]
[310692866,1704645031952,-200.0,0.00022242,2]
[310692867,1704645031961,-150.0,0.00022256,2]
[310692868,1704645031970,-150.0,0.00022256,2]
[310692869,1704645031980,-1317.4003965,0.00022257,2]
[310692870,1704645031992,-3575.20240066,0.00022257,2]
[310692871,1704645032007,-413.90482051,0.00022257,2]
[310692884,1704645037242,282.37401869,0.00022128,2]
[310692902,1704645037879,-18593.49238233,0.00022257,2]
[310692903,1704645037888,-63.69003596,0.00022382,2]
[310692904,1704645037901,-480.07996404,0.00022382,2]
[310692905,1704645037910,-155.42,0.00022398,2]
[310692906,1704645037920,-1358.46074525,0.00022481,2]
[310692907,1704645037930,-519.65,0.00022622,2]
[310692908,1704645037939,-155.42,0.00022982,2]
[310692909,1704645037949,-550.0,0.00023,3]
[310692910,1704645037958,-195.98,0.00023,2]
[310692911,1704645037967,-932.02592622,0.00023,2]
[310692912,1704645037977,-155.59197994,0.00023062,2]
[310692913,1704645037986,-2000.0,0.00023066,2]
[310692914,1704645037996,-200.0,0.00023066,2]
[310692915,1704645038005,-499.99,0.00023066,2]
[310692916,1704645038015,-155.08,0.00023071,2]
[310692917,1704645038025,-163.38,0.0002312,2]
[310692918,1704645038034,-415.93,0.00023123,2]
[310692919,1704645038044,-1261.43625605,0.00023189,2]
[310692920,1704645038052,-155.08,0.0002321,2]
[310692921,1704645038062,-2000.0,0.0002323,2]
[310692922,1704645038071,-83.26842222,0.0002323,2]
[310692923,1704645038084,-116.73157778,0.0002323,2]
[310692924,1704645038094,-146.23537598,0.00023232,2]
[310692925,1704645038106,-1212.22536927,0.00023232,2]
[310692926,1704645038116,-176.30344013,0.00023288,2]
[310692927,1704645038126,-350.0,0.00023288,4]
[310692928,1704645038136,-500.0,0.00023288,4]
[310692929,1704645038145,-21.4711906,0.00023288,4]
[310692930,1704645038157,-478.5288094,0.00023288,4]
[310692931,1704645038167,-498.12207733,0.00023288,4]
[310692932,1704645038188,-101.87792267,0.00023288,4]
[310692933,1704645038198,-500.0,0.00023288,4]
[310692934,1704645038207,-620.0,0.00023288,4]
[310692935,1704645038217,-400.0,0.00023288,4]
[310692936,1704645038227,-400.0,0.00023288,4]
[310692937,1704645038237,-400.00000001,0.00023288,4]
[310692938,1704645038247,-500.0,0.00023288,2]
[310692939,1704645038256,-401.57958435,0.00023288,4]
[310692940,1704645038266,-2000.0,0.00023297,2]
[310692941,1704645038276,-200.0,0.00023297,2]
[310692942,1704645038286,-218.54,0.0002332,2]
[310692943,1704645038295,-155.08,0.00023349,2]
[310692944,1704645038304,-1401.81,0.00023353,2]
[310692945,1704645038314,-2662.3696,0.00023361,2]
[310692946,1704645038323,-4337.62,0.00023368,2]
[310692947,1704645038334,-5509.79,0.00023368,2]
[310692948,1704645038343,-412.88,0.00023368,2]
[310692949,1704645038355,-2798.03,0.00023368,2]
[310692950,1704645038365,-626.30086267,0.0002343,2]
[310692951,1704645038375,-13392.58925723,0.00023459,2]
[310692952,1704645038387,-24251.60432979,0.00023459,2]
[310692954,1704645038399,-153552.19921545,0.00023459,2]
[310692956,1704645038410,-671.22428754,0.00023459,2]
[310692959,1704645038475,-36916.793834,0.00023459,2]
[310692960,1704645038484,-2000.0,0.00023462,2]
[310692961,1704645038494,-200.0,0.00023462,2]
[310692962,1704645038504,-155.08,0.00023488,2]
[310692963,1704645038513,-157.54,0.00023492,2]
[310692964,1704645038522,-2000.0,0.0002353,2]
[310692965,1704645038532,-200.0,0.0002353,2]
[310692966,1704645038545,-218.54,0.00023551,2]
[310692967,1704645038554,-155.42,0.00023565,2]
[310692968,1704645038564,-155.08,0.00023627,2]
[310692969,1704645038574,-2000.0,0.00023697,2]
[310692970,1704645038584,-200.0,0.00023697,2]
[310692971,1704645038592,-920.60065237,0.00023765,2]
[310692972,1704645038604,-200.0,0.00023765,2]
[310692973,1704645038615,-155.08,0.00023766,2]
[310692974,1704645038624,-218.54,0.00023782,2]
[310692975,1704645038634,-155.08,0.00023905,2]
[310692976,1704645038643,-2000.0,0.00023934,2]
[310692977,1704645038653,-200.0,0.00023934,2]
[310692978,1704645038663,-155.0,0.00024,2]
[310692979,1704645038674,-430.5164237,0.00024,2]
[310692980,1704645038683,-200.0,0.00024003,2]
[310692981,1704645038693,-218.54,0.00024013,2]
[310692982,1704645038702,-155.08,0.00024044,2]
[310692983,1704645038711,-161.49130176,0.00024052,2]
[310692984,1704645038721,-157.54,0.00024091,2]
[310692985,1704645038730,-239.9633065,0.000241,2]
[310692986,1704645038739,-170.98,0.00024135,2]
[310692987,1704645038749,-208.02980248,0.00024173,2]
[310692988,1704645038758,-155.08,0.00024183,2]
[310692989,1704645038767,-218.54,0.00024244,2]
[310692990,1704645038776,-415.93,0.00024279,2]
[310692991,1704645038785,-155.08,0.00024322,2]
[310692992,1704645038795,-1401.81,0.00024331,2]
[310692993,1704645038804,-155.08,0.00024461,2]
[310692994,1704645038814,-218.54,0.00024474,2]
[310692995,1704645038823,-210.0,0.00024481,2]
[310692996,1704645038832,-210.0,0.00024481,2]
[310692997,1704645038842,-250.0,0.00024658,2]
[310692998,1704645038852,-205.27,0.00024658,4]
[310692999,1704645038862,-1000.0,0.00024687,2]
[310693000,1704645038871,-157.54,0.0002469,2]
[310693001,1704645038881,-218.54,0.00024705,2]
[310693002,1704645038890,-519.65,0.00024886,2]
[310693003,1704645038899,-155.0,0.00024931,2]
[310693004,1704645038909,-10000.0,0.00024932,2]
[310693005,1704645038918,-218.54,0.00024936,2]
[310693006,1704645038927,-265.7,0.00024962,2]
[310693007,1704645038937,-3034.08810881,0.00025,2]
[310693008,1704645038945,-302.71173098,0.00025,2]
[310693009,1704645038955,-194.10475658,0.00025,2]
[310693010,1704645038964,-155.0,0.00025,2]
[310693011,1704645038973,-166.9760429,0.00025,2]
[310693012,1704645038983,-532.64161305,0.00025,2]
[310693013,1704645038993,-1245.75987952,0.00025,2]
[310693014,1704645039003,-600.0,0.00025,3]
[310693015,1704645039013,-3812.91294263,0.00025,2]
[310693016,1704645039023,-1000.0,0.00025008,2]
[310693017,1704645039032,-465.7809,0.00025008,2]
[310693018,1704645039042,-200.0,0.00025022,2]
[310693019,1704645039051,-469.42,0.00025061,2]
[310693020,1704645039059,-265.7,0.00025094,2]
[310693021,1704645039070,-420072.70334076,0.00025108,2]
[310693022,1704645039079,-129007.34190617,0.00025109,2]
[310693023,1704645039088,-218.54,0.00025167,2]
[310693024,1704645039097,-265.7,0.00025225,2]
[310693025,1704645039105,-157.54,0.00025289,2]
[310693026,1704645039114,-1401.81,0.0002531,2]
[310693027,1704645039123,-626.30086265,0.00025354,2]
[310693028,1704645039132,-265.7,0.00025356,2]
[310693029,1704645039141,-218.54,0.00025398,2]
[310693030,1704645039150,-415.93,0.00025435,2]
[310693031,1704645039159,-265.7,0.00025488,2]
[310693032,1704645039169,-800.0,0.00025601,2]
[310693033,1704645039179,-265.7,0.00025619,2]
[310693034,1704645039188,-218.54,0.00025629,2]
[310693035,1704645039198,-265.7,0.00025751,2]
[310693036,1704645039207,-218.54,0.0002586,2]
[310693037,1704645039216,-265.7,0.00025882,2]
[310693038,1704645039225,-157.54,0.00025888,2]
[310693039,1704645039235,-175.9,0.000259,2]
[310693040,1704645039244,-150.0,0.00025973,2]
[310693041,1704645039253,-469.42,0.00025974,2]
[310693042,1704645039263,-265.7,0.00026013,2]
[310693043,1704645039272,-150.0,0.00026079,2]
[310693044,1704645039281,-218.54,0.00026091,2]
[310693045,1704645039291,-265.7,0.00026145,2]
[310693046,1704645039301,-1928.0,0.0002627,2]
[310693047,1704645039311,-994.0,0.0002627,2]
[310693048,1704645039320,-1138.0,0.0002627,2]
[310693049,1704645039330,-592.0,0.0002627,2]
[310693050,1704645039339,-435.561,0.0002627,2]
[310693051,1704645039348,-882.0,0.0002627,2]
[310693052,1704645039357,-427.71,0.0002627,2]
[310693053,1704645039366,-506.0,0.0002627,2]
[310693054,1704645039375,-235.0,0.0002627,2]
[310693055,1704645039385,-2267.0,0.0002627,2]
[310693056,1704645039394,-2897.0,0.0002627,2]
[310693057,1704645039403,-5561.0,0.0002627,2]
[310693058,1704645039412,-1301.0,0.0002627,2]